[Event "USA Championship Women 2022"]
[Site "Saint Louis"]
[Date "2022.10.17"]
[Round "11.3"]
[White "Morris-Suzuki, Sophie"]
[Black "Foisor, Sabina-Francesca"]
[Result "0-1"]
[ECO "B12"]
[WhiteElo "2126"]
[BlackElo "2203"]
[Annotator "TA"]
[PlyCount "82"]
[EventDate "2022.09.05"]
[EventType "tourn"]
[EventCountry "USA"]
[SourceTitle "playchess.com"]
[Source "ChessBase"]
[SourceQuality "1"]
[TimeControl "40/5400+30:1800+30"]

{[%evp 9,81,11,22,6,26,16,12,0,15,0,10,-7,-6,-52,-10,-31,0,0,0,13,0,-76,-86,-85,-82,-85,-11,-189,-206,-218,-235,-289,-253,-313,-7,-8,-8,-8,0,0,0,0,29,17,43,43,41,45,42,8,224,210,2377,2217,1975,1910,29978,29979,4722,689,636,270,259,0,0,-29994,-29995,-29996,-29997,-29997,-29998,-29998,-29999,-29999]} 1. e4 {[%emt 0:00:03]} c6 {[%emt 0:00:32]} 2. d4 {[%emt 0:00:13]} d5 {[%emt 0:00:08]} 3. e5 {[%emt 0:00:14]} Bf5 {[%emt 0:00:17]} 4. h4 {[%emt 0:00:13]} h5 {[%emt 0:00:09]} 5. Bd3 {[%emt 0:00:10]} Bxd3 {[%emt 0:00:26]} 6. Qxd3 {[%emt 0:00:14][%cal Oe5e6] B12: Caro-Kann: Advance Variation.} Qa5+ {[%emt 0:00:10]} 7. Nd2 {[%emt 0:00:12][%cal Oe5e6] Black must now prevent e6!} e6 {[%emt 0:00:18]} 8. Ngf3 {[%emt 0:00:18] The position is equal.} Ne7 {[%emt 0:01:17]} 9. O-O {[%emt 0:00:53][%cal Ob2b4]} Nf5 {[%emt 0:05:15]} 10. c4 {[%emt 0:01:43]} Be7 {[%emt 0:05:07]} 11. a4 {[%emt 0:05:16]} (11. g3 $11 {is more appropriate.}) 11... Nd7 {[%emt 0:22:49]} 12. b3 {[%emt 0:03:13] [#]} Qd8 $146 {[%emt 0:05:28]} (12... Bxh4 {with more complications.} 13. cxd5 Qxd5 14. Ba3 Be7) ({Predecessor:} 12... Nxh4 13. Nxh4 Bxh4 14. Ba3 Qd8 15. b4 Be7 16. b5 O-O 17. Bxe7 Qxe7 18. c5 g6 {0-1 (31) Farmani Anosheh,A (2346)-Jaferian,K (2227) Chess.com INT 2022}) 13. g3 {[%emt 0:01:41]} g5 {[%emt 0:07:22]} 14. hxg5 {[%emt 0:23:29]} Bxg5 {[%emt 0:00:39]} 15. Nh2 {[%emt 0:09:49]} (15. Kh1 $11 {remains equal.}) 15... Bxd2 $17 {[%emt 0:10:26] Black is more active.} (15... h4 $6 16. g4 Bxd2 17. Qxd2 $11) 16. Qxd2 {[%emt 0:11:20]} dxc4 $1 {[%emt 0:00:18]} 17. bxc4 {[%emt 0:00:03]} Nb6 {[%emt 0:00:08]} (17... Rg8 $17 {Hoping for ...Nb6.} 18. Rd1 Qh4) 18. Rd1 $2 {[%emt 0:06:01]} (18. a5 $1 $11 Nxc4 19. Qb4) 18... Nxc4 $19 {[%emt 0:12:17]} 19. Qc3 {[%emt 0:03:29]} Qd5 {[%emt 0:03:09]} (19... Nxe5 20. Qb3 Nd7 21. Qxb7 $17) 20. Bf4 {[%emt 0:04:17]} Rg8 {[%emt 0:06:49]} 21. a5 {[%emt 0:01:45]} Nh4 $2 {[%emt 0:03:09]} (21... O-O-O $19 {And now ...h4 would win.} 22. a6 Nxd4 23. axb7+ Kb8) 22. f3 $11 {[%emt 0:00:03]} Nf5 {[%emt 0:08:53]} 23. Kf2 $1 {[%emt 0:00:55]} (23. Rdc1 b5 24. axb6 Nxb6 $17) 23... b5 {[%emt 0:02:33] aiming for ...0-0-0.} 24. axb6 $1 {[%emt 0:00:32]} Nxb6 {[%emt 0:00:01] Pair of Knights!} 25. g4 {[%emt 0:00:41]} Ne7 {[%emt 0:01:29]} (25... Qd8 $5 26. Qxc6+ (26. gxf5 Qh4+ 27. Kf1 Rc8 $17) 26... Kf8 27. Qc5+ (27. gxf5 Qh4+ 28. Kf1 Qxf4 $17) 27... Ke8 $11) 26. gxh5 {[%emt 0:01:23] Threatens to win with Ng4.} f5 {[%emt 0:01:02] Prevents Ng4.} 27. exf6 {[%emt 0:06:44]} Qxh5 {[%emt 0:00:05]} 28. Ng4 {[%emt 0:11:42]} Nbd5 {[%emt 0:00:04][%csl LRc3,LRf4]} 29. Qd2 {[%emt 0:03:16]} Nxf4 $2 {[%emt 0:02:40]} (29... Nf5 $2 30. Rh1 Qf7 31. Be5 $18) (29... Rxg4 $11 {and Black stays safe.} 30. fxg4 Qxg4) 30. Qxf4 $18 {[%emt 0:00:15]} Qf5 $2 {[%emt 0:01:49]} (30... Nd5 31. f7+ (31. Qd6 Qh4+ 32. Kf1 Rxg4 $11) 31... Qxf7 32. Qxf7+ Kxf7 33. Nh6+ Kg7) 31. Qd6 {[%emt 0:03:26][%csl Gf6][%cal Rd6e7]} Qc2+ {[%emt 0:00:37]} 32. Kg1 {[%emt 0:00:01][%csl Gf6][%cal Rd6e7]} Nd5 {[%emt 0:00:27]} 33. Qxe6+ {[%emt 0:01:12]} Kf8 {[%emt 0:00:01]} 34. Rac1 {[%emt 0:01:01]} (34. Qd6+ $142 Kf7 35. Rdb1) 34... Qb3 {[%emt 0:00:46]} 35. Qd6+ {[%emt 0:01:04]} (35. f7 $142 {[%csl Ge6][%cal Rf7g8]} Rxg4+ 36. Qxg4 Qe3+ 37. Kf1) 35... Kf7 {[%emt 0:00:10] ( -> ...Qe3+)} 36. Kh2 $2 {[%emt 0:00:49]} (36. Qxc6 $2 Rxg4+ $1 {[%mdl 512]} 37. fxg4 Qg3+ 38. Kf1 Qf3+ 39. Ke1 (39. Kg1 $2 Qxg4+ 40. Kf2 Qf4+ 41. Ke2 Qe3+ 42. Kf1 Qf3+ 43. Ke1 Qe3+ 44. Kf1 Qf3+ 45. Ke1 Qg3+ 46. Ke2 Qe3+ 47. Kf1 $19) 39... Qg3+ 40. Kf1 Qf3+ 41. Ke1 (41. Kg1 $2 Qxg4+ 42. Kf2 Qf4+ 43. Ke2 Qe4+ 44. Kf2 Qf4+ 45. Ke1 Qe3+ 46. Kf1 Qf3+ 47. Ke1 Re8+ 48. Qxe8+ Kxe8 $19) 41... Re8+ 42. Qxe8+ Kxe8 $19) ({Only move:} 36. Qd7+ $18 Kf8 37. Qf5 (37. Qxc6 Rxg4+ 38. fxg4 Qg3+ 39. Kh1 Qh3+ 40. Kg1 Qg3+ 41. Kh1 Qh3+ 42. Kg1 Qg3+ $11) 37... Qe3+ 38. Kh2) 36... Rh8+ $1 $11 {[%emt 0:00:55]} 37. Kg3 $2 {[%emt 0:00:48][%mdl 8192] [#]} (37. Kg2 $11 Rag8 38. Kf2 Rxg4 39. Qd7+ (39. fxg4 Qe3+ 40. Kg2 Nf4+) 39... Kf8 40. Qd6+ (40. fxg4 $2 {gets mated.} Rh2+ 41. Kg1 Qg3+ 42. Kf1 Qf2#) 40... Kf7 41. Qd7+ (41. fxg4 {leads to mate.} Qe3+ 42. Kg2 Nf4+) 41... Kf8 42. Qd6+ (42. fxg4 $2 Rh2+ 43. Kg1 Qg3+ 44. Kf1 Qf2#) 42... Kf7) 37... Rh3+ $3 {[%emt 0:00:12][%mdl 576] Skewer, Deflection, Decoy. Black mates.} 38. Kxh3 {[%emt 0:00:01]} (38. Kf2 Qxf3+) 38... Qxf3+ {[%emt 0:00:07]} 39. Kh4 {[%emt 0:00:01]} Rh8+ {[%emt 0:00:29]} 40. Kg5 {[%emt 0:00:03]} Rg8+ {[%emt 0:00:10][%mdl 64] Skewer} 41. Kh6 {[%emt 0:30:06]} Qh3# {[%emt 0:30:13] A wild game.  Weighted Error Value: White=0.72/Black=0.39} 0-1

[Event "USA Championship Women 2022"]
[Site "Saint Louis"]
[Date "2022.10.17"]
[Round "11.4"]
[White "Lee, Alice"]
[Black "Abrahamyan, Tatev"]
[Result "1/2-1/2"]
[ECO "D37"]
[WhiteElo "2263"]
[BlackElo "2308"]
[Annotator "TA"]
[PlyCount "118"]
[EventDate "2022.09.05"]
[EventType "tourn"]
[EventCountry "USA"]
[SourceTitle "playchess.com"]
[Source "ChessBase"]
[SourceQuality "1"]
[TimeControl "40/5400+30:1800+30"]

{[%evp 9,118,20,25,22,21,30,32,10,14,13,8,14,28,19,25,25,28,-2,0,-8,-4,-13,0,-11,0,-8,-7,-11,-13,-4,-16,-9,0,0,0,-7,0,-70,0,0,-6,-122,0,0,14,0,0,0,0,0,0,-47,160,160,173,178,595,590,575,543,411,411,623,611,597,600,591,546,598,501,658,644,4133,1487,29954,29954,10590,6089,29968,29969,29967,29968,29974,29975,29975,29976,29977,29978,29978,29979,29979,29980,29981,29974,29973,0,0,0,0,0,0,0,0,0,0,0,0,0,0,0,0]} 1. d4 {[%emt 0:00:01]} Nf6 {[%emt 0:00:20]} 2. c4 {[%emt 0:00:06]} e6 {[%emt 0:00:02]} 3. Nf3 {[%emt 0:00:07]} d5 {[%emt 0:00:03]} 4. Nc3 {[%emt 0:00:07]} h6 {[%emt 0:00:04]} 5. g3 {[%emt 0:02:41]} Bd6 {[%emt 0:00:13]} 6. Bg2 {[%emt 0:00:30] D37: Queen's Gambit Declined: 5 Bf4.} O-O {[%emt 0:00:05]} 7. O-O {[%emt 0:01:05]} Nc6 {[%emt 0:00:10] Inhibits Ne5.} 8. a3 {[%emt 0:02:52] White is slightly better.} dxc4 {[%emt 0:05:34]} 9. Qa4 {[%emt 0:00:39]} e5 {[%emt 0:04:57]} 10. Qxc4 {[%emt 0:02:54]} (10. d5 {keeps more tension.} Nd4 11. Nxd4 exd4 12. Nb5) 10... exd4 {[%emt 0:06:37]} 11. Nxd4 {[%emt 0:00:13]} Nxd4 {[%emt 0:01:38]} 12. Qxd4 {[%emt 0:00:08]} Qe7 {[%emt 0:01:29] [#]} 13. Qd3 $146 {[%emt 0:09:47]} ({Predecessor:} 13. h3 c6 14. e4 Bc5 15. Qa4 Rd8 16. Qc2 Be6 17. Re1 Nd7 18. Bf4 f6 19. Be3 {0-1 (31) Shmeliov,D (2436)-Jacobson,A (2305) New York 2022}) 13... c6 {[%emt 0:08:45]} 14. b4 {[%emt 0:03:53]} Rd8 {[%emt 0:05:56][%cal Od6b4]} 15. Qc2 {[%emt 0:01:57]} (15. Rd1 Bg4 16. Qe3 Qxe3 17. Bxe3 Be5 $15) 15... Be6 {[%emt 0:00:42]} 16. Bb2 {[%emt 0:04:01]} Be5 {[%emt 0:09:08]} 17. Rfe1 {[%emt 0:15:50]} a5 $36 {[%emt 0:05:57][%mdl 2048] Black has the initiative.} 18. Ne4 {[%emt 0:09:46]} Bxb2 {[%emt 0:23:13]} 19. Qxb2 {[%emt 0:00:03]} Nxe4 {[%emt 0:00:28]} 20. Bxe4 {[%emt 0:00:03]} Bh3 {[%emt 0:01:53]} 21. Bd3 {[%emt 0:09:39]} Qe6 {[%emt 0:04:29][%cal Oc6c5]} 22. Rad1 {[%emt 0:01:52]} Rd7 {[%emt 0:03:50]} (22... Qd5 23. Bh7+ $1 {[%mdl 512]} Kxh7 24. Rxd5 Rxd5 25. bxa5 $16) 23. Rd2 {[%emt 0:02:48]} (23. bxa5 $11 Rxa5 24. Qb4) 23... axb4 {[%emt 0:01:40]} (23... Qd5 24. Bh7+ $1 {[%mdl 512]} Kxh7 25. Rxd5 Rxd5 26. bxa5 $16) ({Black should play} 23... c5 $1 $15 24. bxc5 Qc6) 24. axb4 $11 {[%emt 0:00:28]} Rad8 {[%emt 0:01:10][%cal Od7d3]} (24... Qd5 25. Bh7+ $1 Kxh7 26. Rxd5 Rxd5 27. f3 $16) 25. Ra1 {[%emt 0:03:48] [#]} (25. Qc3 $11 {remains equal.}) 25... Kf8 {[%emt 0:02:22]} (25... Qd5 {[#]} 26. Bh7+ $1 {[%mdl 512]} Kxh7 27. Rxd5 Rxd5 28. f3 $16) ({Better is} 25... c5 $1 $17 {[%cal Rc5c4]} 26. Qb1 c4 27. Bh7+ Kh8 28. Rxd7 Qxd7) 26. Qc3 {[%emt 0:03:16]} b6 {[%emt 0:05:57]} 27. Rc2 {[%emt 0:02:25]} Rd6 {[%emt 0:01:01]} (27... Qd5 28. Qxc6 Qe5 29. Rac1 $16) 28. Qc4 {[%emt 0:02:00]} Qf6 {[%emt 0:01:31]} 29. Qc3 {[%emt 0:05:44]} Rd4 {[%emt 0:00:20][%cal Oc6c5] Hoping for ...c5!} 30. Rb1 {[%emt 0:01:59]} (30. Rcc1 $11 {might be stronger.}) 30... Rxd3 $2 {[%emt 0:04:37]} 31. exd3 $16 {[%emt 0:00:29] Qxf6 is the strong threat.} Qf3 {[%emt 0:00:02][%csl Gh3][%cal Rf3g2]} 32. Qxc6 {[%emt 0:00:12]} Rd5 $2 {[%emt 0:00:09]} (32... Qxd3 {is tougher.} 33. Re1 Kg8) 33. Qa8+ $18 {[%emt 0:00:30]} Ke7 {[%emt 0:00:01][%csl Gh3][%cal Rf3g2]} 34. Re1+ {[%emt 0:03:14]} Kf6 {[%emt 0:00:19][%csl Gh3][%cal Rf3g2]} 35. Qc6+ {[%emt 0:00:45]} Kg5 {[%emt 0:00:26] [#]} (35... Be6 $142 36. Rce2 Qf5) 36. Qxd5+ $3 {[%emt 0:00:18][%mdl 512]} Qxd5 {[%emt 0:00:06][%csl Gh3][%cal Rd5g2] [#]} 37. Re5+ $3 {[%emt 0:00:05][%mdl 512]} Qxe5 {[%emt 0:00:01][%cal Re5e1]} 38. f4+ {[%emt 0:00:06]} Qxf4 {[%emt 0:00:21]} 39. gxf4+ Kxf4 {[%emt 0:00:01][%mdl 4096] Endgame KR-KB} 40. Rf2+ {[%emt 0:00:38]} Ke3 {[%emt 0:02:23]} 41. Rxf7 {[%emt 0:30:31]} b5 {[%emt 0:16:38]} 42. Rxg7 {[%emt 0:00:00]} Bf5 {[%emt 0:01:49]} 43. Rc7 {[%emt 0:00:00]} Bxd3 {[%emt 0:01:25]} 44. Rc6 {[%emt 0:00:00]} h5 {[%emt 0:02:32]} 45. Rc5 {[%emt 0:00:00]} Be2 {[%emt 0:01:19]} 46. Re5+ {[%emt 0:00:00]} Kd2 {[%emt 0:00:44]} 47. Kf2 {[%emt 0:00:00]} Bc4 {[%emt 0:00:18]} 48. Rxh5 {[%emt 0:00:00]} Kc3 {[%emt 0:00:06]} 49. Ke3 {[%emt 0:00:00]} Kxb4 {[%emt 0:01:49]} 50. Kd4 {[%emt 0:00:00]} Kb3 {[%emt 0:01:32]} 51. Kc5 {[%emt 0:00:00]} Kc3 {[%emt 0:01:22]} 52. Re5 $2 {[%emt 0:02:00]} (52. Rg5 {mates} b4 53. Rg4 Bf1 54. Rxb4 Kd3 55. h4 Bg2 56. h5 Bf3 57. h6) 52... Bd3 $1 $11 {[%emt 0:02:50] The position is equal.} 53. Rd5 {[%emt 0:10:17] Threatening mate with Rd4.} b4 {[%emt 0:00:36]} 54. Rxd3+ {[%emt 0:00:43]} Kxd3 {[%emt 0:00:02]} 55. Kxb4 {[%emt 0:00:05] KP-K} Ke4 {[%emt 0:00:04]} 56. Kc5 {[%emt 0:00:04]} Kf4 {[%emt 0:00:04]} 57. Kd4 {[%emt 0:00:04]} Kg4 {[%emt 0:00:02]} 58. Ke3 {[%emt 0:00:04]} Kh3 {[%emt 0:00:01]} 59. Kf2 {[%emt 0:00:05]} Kxh2 {[%emt 0:00:04] Black escapes into a draw.  Weighted Error Value: White=0.18 (very precise) /Black=0.49} 1/2-1/2

[Event "USA Championship Women 2022"]
[Site "Saint Louis"]
[Date "2022.10.17"]
[Round "11.5"]
[White "Paikidze, Nazi"]
[Black "Krush, Irina"]
[Result "0-1"]
[ECO "E08"]
[WhiteElo "2354"]
[BlackElo "2432"]
[Annotator "TA"]
[PlyCount "104"]
[EventDate "2022.09.05"]
[EventType "tourn"]
[EventCountry "USA"]
[SourceTitle "playchess.com"]
[Source "ChessBase"]
[SourceQuality "1"]
[TimeControl "40/5400+30:1800+30"]

{[%evp 26,104,92,93,100,100,84,85,99,94,91,90,97,65,60,68,71,64,70,66,65,18,27,20,18,0,0,0,0,0,0,-10,-4,-72,-74,-721,-667,-366,-77,-210,-151,-249,-249,-249,-249,-406,-241,-552,-540,-545,-545,-766,-741,-1012,-1012,-661,-661,-1329,-1312,-1309,-1305,-1216,-1197,-29966,-29968,-29965,-29955,-29945,-29950,-29976,-29977,-29979,-29980,-29983,-29984,-29985,-29986,-29991,-29985,-29984,-29985]} 1. d4 {[%emt 0:00:02]} d5 {[%emt 0:03:36]} 2. Nf3 {[%emt 0:00:05]} Nf6 {[%emt 0:01:26]} 3. c4 {[%emt 0:00:06]} e6 {[%emt 0:00:34]} 4. Nc3 {[%emt 0:00:06]} c6 {[%emt 0:00:26]} 5. g3 {[%emt 0:00:10]} Be7 {[%emt 0:01:28]} 6. Bg2 {[%emt 0:00:57]} O-O {[%emt 0:00:24]} 7. O-O {[%emt 0:00:33]} b6 {[%emt 0:05:08]} 8. Qc2 {[%emt 0:01:14]} Bb7 {[%emt 0:03:41]} 9. Rd1 {[%emt 0:02:31]} Nbd7 {[%emt 0:05:38]} 10. b3 {[%emt 0:06:40]} Rc8 {[%emt 0:01:55]} 11. e4 {[%emt 0:03:41]} c5 {[%emt 0:04:58]} 12. exd5 {[%emt 0:02:44]} exd5 {[%emt 0:00:10]} 13. Bb2 {[%emt 0:03:47]} dxc4 {[%emt 0:05:59]} 14. d5 {[%emt 0:02:11] aiming for d6.} Ne8 {[%emt 0:10:42] E08: Closed Catalan: Main Line: 7 Qc2.} 15. bxc4 {[%emt 0:00:50]} Nd6 {[%emt 0:00:22]} 16. Nd2 {[%emt 0:09:32]} Bf6 {[%emt 0:01:02] White is better.} 17. Nce4 {[%emt 0:06:17]} Bxb2 {[%emt 0:02:17]} 18. Qxb2 {[%emt 0:02:18] [#]} Nf6 $146 {[%emt 0:06:44]} ({Predecessor:} 18... Qe7 19. Nxd6 Qxd6 20. f4 Nf6 21. a4 Rce8 22. a5 Re2 23. Bf3 Re7 24. axb6 axb6 {½-½ (58) Ontiveros,J (2273)-Karachisaridis,V (2243) ICCF email 2006}) 19. Nxd6 {[%emt 0:06:17]} Qxd6 {[%emt 0:00:09]} 20. a4 {[%emt 0:01:12]} Rfe8 {[%emt 0:02:05]} 21. a5 {[%emt 0:02:43]} Rb8 {[%emt 0:00:46][%cal Ob6b5]} 22. axb6 {[%emt 0:02:10]} axb6 {[%emt 0:00:03]} 23. Re1 {[%emt 0:07:38]} (23. Nb1 $14 {is superior.}) 23... Rxe1+ $1 $11 {[%emt 0:11:14]} 24. Rxe1 {[%emt 0:00:03]} b5 $1 {[%emt 0:00:21]} 25. f4 {[%emt 0:11:19]} h6 {[%emt 0:08:37]} ({Don't take} 25... bxc4 26. Nxc4 Ba8 27. Qa1 $16 (27. Nxd6 Rxb2 28. Ra1 Rb8 $11)) 26. Qe5 {[%emt 0:04:17]} Qf8 {[%emt 0:08:10]} 27. Ne4 {[%emt 0:00:56]} Nxe4 {[%emt 0:05:10]} 28. Bxe4 {[%emt 0:00:06]} bxc4 {[%emt 0:07:18]} 29. Rb1 {[%emt 0:02:22] [#]} (29. Qc3 $11) 29... Re8 $1 $17 {[%emt 0:00:31]} 30. Qf5 {[%emt 0:19:00][%mdl 8192]} (30. Qc7 $17) 30... g6 $19 {[%emt 0:00:03]} 31. Qf6 {[%emt 0:00:16]} Bc8 {[%emt 0:03:44]} (31... Rxe4 $19 32. Rxb7 Qe8) 32. Bc2 {[%emt 0:02:26]} (32. Bxg6 $17 fxg6 33. Qxg6+ Kh8 34. Rb6) 32... Re2 {[%emt 0:01:00]} 33. Ba4 {[%emt 0:00:11]} (33. Bd1 $17 Re1+ 34. Kf2) 33... Bf5 {[%emt 0:00:36]} 34. Rb7 {[%emt 0:01:13]} Qg7 {[%emt 0:00:14] Chess con chili.} 35. Qxg7+ {[%emt 0:01:22]} ({Much worse is} 35. Rb8+ Kh7 36. Qxg7+ Kxg7 $19) 35... Kxg7 {[%emt 0:00:02][%mdl 4096] Endgame KRB-KRB} 36. Rc7 $2 {[%emt 0:00:40]} (36. d6 {nothing else works.}) 36... c3 {[%emt 0:00:52]} 37. Rxc5 {[%emt 0:00:23]} c2 {[%emt 0:00:01]} 38. d6 {[%emt 0:00:40][%cal Oa4c2]} Re1+ {[%emt 0:01:14]} 39. Kf2 {[%emt 0:00:01]} c1=Q {[%emt 0:00:30]} 40. Rxc1 {[%emt 0:00:05]} Rxc1 {[%emt 0:00:07]} 41. d7 {[%emt 0:30:02] [#]} Bxd7 {[%emt 0:30:24]} 42. Bxd7 {[%emt 0:00:04] KR-KB} Rc2+ {[%emt 0:00:11]} 43. Kg1 {[%emt 0:00:14]} g5 {[%emt 0:00:00]} 44. fxg5 {[%emt 0:00:00]} hxg5 {[%emt 0:00:00] Black mates.} 45. Bf5 {[%emt 0:00:00]} Rb2 {[%emt 0:00:00]} 46. Be4 {[%emt 0:00:00]} Kf6 {[%emt 0:00:00]} 47. Bf3 {[%emt 0:00:00]} Ke5 {[%emt 0:00:00]} 48. h3 {[%emt 0:00:00]} f5 {[%emt 0:00:00]} 49. Kf1 {[%emt 0:00:00]} Kd4 {[%emt 0:00:00]} 50. Kg1 {[%emt 0:00:00]} Ke3 {[%emt 0:00:00]} 51. Bg2 {[%emt 0:00:00]} Rxg2+ {[%emt 0:00:00]} 52. Kxg2 {[%emt 0:00:00] [#]} Ke2 $1 {[%emt 0:00:00] Weighted Error Value: White=0.73/Black=0.14 (very precise)} 0-1

[Event "USA Championship Women 2022"]
[Site "Saint Louis"]
[Date "2022.10.17"]
[Round "11.6"]
[White "Yan, Ruiyang"]
[Black "Lee, Megan"]
[Result "1-0"]
[ECO "C54"]
[WhiteElo "2220"]
[BlackElo "2226"]
[Annotator "TA"]
[PlyCount "76"]
[EventDate "2022.09.05"]
[EventType "tourn"]
[EventCountry "USA"]
[SourceTitle "playchess.com"]
[Source "ChessBase"]
[SourceQuality "1"]
[TimeControl "40/5400+30:1800+30"]

{[%evp 18,76,8,0,23,-8,0,0,0,0,-8,-9,96,102,83,87,95,51,50,48,53,44,48,44,55,45,45,45,41,36,50,91,108,118,113,99,89,102,120,118,116,121,234,216,308,279,763,752,959,960,1361,1244,1490,1500,1420,1411,1345,1314,5426,5422,1864]} 1. e4 {[%emt 0:00:03]} e5 {[%emt 0:00:04]} 2. Nf3 {[%emt 0:00:09]} Nc6 {[%emt 0:00:01]} 3. Bc4 {[%emt 0:02:01]} Bc5 {[%emt 0:00:30]} 4. c3 {[%emt 0:00:13]} Nf6 {[%emt 0:00:20]} 5. d4 {[%emt 0:00:08]} exd4 {[%emt 0:00:09]} 6. e5 {[%emt 0:00:12]} d5 {[%emt 0:02:38]} 7. Bb5 {[%emt 0:00:09]} Ne4 {[%emt 0:01:55]} 8. cxd4 {[%emt 0:00:07]} Bb6 {[%emt 0:02:25]} 9. O-O {[%emt 0:09:16]} O-O {[%emt 0:04:07]} 10. Be3 {[%emt 0:05:32] is the legacy move (10.Nc3).} Ne7 {[%emt 0:09:24] C54: Giuoco Piano: 4 c3 Nf6, main lines with 5 d4 and 5 d3.} 11. Nbd2 {[%emt 0:04:15] [#]} Bg4 $146 {[%emt 0:06:49]} ({Predecessor:} 11... Nf5 12. Bd3 Nxe3 13. fxe3 f5 14. Rc1 Be6 15. Nb3 Qe7 16. Qc2 Rac8 17. Nc5 c6 18. b4 Nxc5 19. bxc5 {1-0 (38) Mikalsen,E (2307)-Mihajlov,S (2371) Drammen 2018}) 12. Qc2 {[%emt 0:08:19]} Nxd2 {[%emt 0:03:29] The position is equal.} 13. Nxd2 {[%emt 0:00:26]} Nf5 {[%emt 0:01:47]} 14. h3 {[%emt 0:11:19]} Bxd4 {[%emt 0:17:24]} (14... Nxe3 $11 {remains equal.} 15. fxe3 Bh5) 15. Bf4 $16 {[%emt 0:16:21]} (15. hxg4 Nxe3 16. fxe3 Bxe3+ 17. Rf2 Bxf2+ 18. Kxf2 Qh4+ 19. Kg1 Qxg4 $17) 15... Qh4 {[%emt 0:15:26][%cal Og4h3] White must now prevent ...Bxh3!} 16. hxg4 {[%emt 0:00:10]} Qxg4 {[%emt 0:00:31]} 17. Bd7 {[%emt 0:00:32]} (17. g3 $2 Nxg3 18. Qd3 Nxf1+ 19. Kxf1 Qxf4 $19) 17... Qxf4 {[%emt 0:01:44]} 18. Bxf5 {[%emt 0:00:22]} g6 {[%emt 0:01:30]} 19. Bd3 {[%emt 0:03:43]} ({Of course not} 19. Nf3 gxf5 20. Nxd4 Qxd4 $11) 19... Bxe5 {[%emt 0:03:11][%csl Ge5][%cal Rf4h2]} 20. g3 {[%emt 0:02:46]} Qg4 {[%emt 0:02:03][%cal Oe5g3]} 21. Kg2 {[%emt 0:03:30]} c6 {[%emt 0:01:40]} 22. Nf3 {[%emt 0:01:50]} Bf6 {[%emt 0:00:29]} 23. Rh1 {[%emt 0:03:35]} Rfe8 {[%emt 0:01:53]} 24. Rh6 {[%emt 0:02:25] Rah1 is the strong threat. White now steadily converts the win.} Kg7 {[%emt 0:05:11]} 25. Rah1 {[%emt 0:00:33]} Rh8 {[%emt 0:00:05]} 26. Qc1 {[%emt 0:02:20]} Kg8 {[%emt 0:02:51]} 27. b3 {[%emt 0:03:34]} Bg7 {[%emt 0:02:15]} 28. R6h4 {[%emt 0:00:57]} Qd7 {[%emt 0:00:01]} 29. g4 $36 {[%emt 0:09:01][%mdl 2048] Prevents h5. White is really pushing. White is much more active. The black rooks are badly placed.} f6 {[%emt 0:04:05]} (29... h6 $16 {was necessary.}) 30. R1h3 {[%emt 0:01:32]} Qf7 {[%emt 0:09:10]} (30... Re8 $142 31. Qb1 Re7) 31. Qb1 {[%emt 0:03:14][%cal Oh4h7] Threatens to win with Rxh7!} Re8 $2 {[%emt 0:00:26] [#]} (31... Qe6 32. Qh1 (32. Bxg6 hxg6 33. Rxh8+ Bxh8 $18) 32... Kf7) 32. Rxh7 $3 $18 {[%emt 0:03:03][%mdl 512] White is clearly winning.} f5 {[%emt 0:02:22] [#]} (32... Rxh7 33. Bxg6) 33. gxf5 $1 {[%emt 0:00:43]} gxf5 {[%emt 0:00:17]} (33... Rxh7 34. fxg6) 34. Bxf5 {[%emt 0:00:12]} Qf6 {[%emt 0:00:39]} 35. Rxh8+ {[%emt 0:00:48]} Bxh8 {[%emt 0:00:01]} 36. Rg3+ {[%emt 0:01:39]} Kf8 {[%emt 0:00:42]} 37. Rg6 {[%emt 0:00:40]} Qb2 {[%emt 0:00:54]} 38. Qh1 {[%emt 0:01:25] Threatening mate with Qh6+.} Bf6 {[%emt 0:00:00] Weighted Error Value: White=0.10 (very precise) /Black=0.26 (precise)} 1-0